fUSD/lending_fUSD_20260402
["ID","MTS","AMOUNT","RATE_DAILY","PERIOD"]
[419302785,1775135449196,-500.0,0.00015999,2]
[419302786,1775135449207,-500.0,0.00015999,2]
[419302787,1775135449217,-500.0,0.00015999,2]
[419302788,1775135449226,-500.0,0.00015999,2]
[419302789,1775135449236,-500.0,0.00015999,2]
[419302790,1775135449246,-500.0,0.00015999,2]
[419302791,1775135449256,-500.0,0.00015999,2]
[419302792,1775135449266,-500.0,0.00015999,2]
[419302793,1775135449275,-500.0,0.00015999,2]
[419302794,1775135449285,-500.0,0.00015999,2]
[419302795,1775135449294,-500.0,0.00015999,2]
[419302796,1775135449305,-500.0,0.00015999,2]
[419302797,1775135449315,-642.6141901,0.00015999,2]
[419302798,1775135449325,-500.0,0.00015999,2]
[419302799,1775135449337,-500.0,0.00015999,2]
[419302800,1775135449347,-500.0,0.00015999,2]
[419302801,1775135449357,-500.0,0.00015999,2]
[419302802,1775135449367,-500.0,0.00015999,2]
[419302803,1775135449378,-500.0,0.00015999,2]
[419302804,1775135449388,-500.0,0.00015999,2]
[419302805,1775135449397,-500.0,0.00015999,2]
[419302806,1775135449407,-500.0,0.00015999,2]
[419302807,1775135449417,-500.0,0.00015999,2]
[419302808,1775135449427,-1221.25,0.00015999,2]
[419302809,1775135449437,-1221.25,0.00015999,2]
[419302810,1775135449447,-1221.25,0.00015999,2]
[419302811,1775135449457,-1221.25,0.00015999,2]
[419302812,1775135449467,-1221.25,0.00015999,2]
[419302813,1775135449476,-500.0,0.00015999,2]
[419302814,1775135449486,-500.0,0.00015999,2]
[419302815,1775135449496,-500.0,0.00015999,2]
[419302816,1775135449506,-500.0,0.00015999,2]
[419302817,1775135449516,-500.0,0.00015999,2]
[419302818,1775135449525,-500.0,0.00015999,2]
[419302819,1775135449535,-500.0,0.00015999,2]
[419302820,1775135449545,-500.0,0.00015999,2]
[419302821,1775135449555,-500.0,0.00015999,2]
[419302822,1775135449564,-500.0,0.00015999,2]
[419302823,1775135449574,-597096.84750109,0.00016,2]
[419302824,1775135449584,-542188.76526807,0.00016,2]
[419302825,1775135449595,-503378.71445982,0.00016,2]
[419302826,1775135449605,-208.63150306,0.00016,2]
[419302827,1775135449615,-428568.92121285,0.00016,2]
[419302828,1775135449624,-2000.0,0.00016,2]
[419302829,1775135449635,-169.5030048,0.00016006,7]
[419302830,1775135449645,-2809.0,0.00016021,2]
[419302831,1775135449656,-1571.0,0.0001604,2]
[419302832,1775135449666,-208.63150306,0.000161,2]
[419302833,1775135449677,-2000.0,0.000161,2]
[419302834,1775135449687,-1571.0,0.00016122,2]
[419302835,1775135449697,-2808.0,0.0001614,2]
[419302836,1775135449706,-500.0,0.00016164,2]
[419302837,1775135449716,-500.0,0.00016164,2]
[419302838,1775135449725,-500.0,0.00016164,2]
[419302839,1775135449735,-500.0,0.00016164,2]
[419302840,1775135449745,-500.0,0.00016164,2]
[419302841,1775135449755,-500.0,0.00016164,2]
[419302842,1775135449765,-500.0,0.00016164,2]
[419302843,1775135449775,-500.0,0.00016164,2]
[419302844,1775135449786,-500.0,0.00016164,2]
[419302845,1775135449795,-627.34634396,0.00016164,2]
[419302846,1775135449805,-1600.0,0.00016164,2]
[419302847,1775135449825,-508.0,0.000162,2]
[419302848,1775135449835,-208.63150306,0.000162,2]
[419302849,1775135449844,-5000.00398881,0.000162,5]
[419302850,1775135449854,-2000.0,0.000162,2]
[419302851,1775135449864,-2795.97,0.00016282,2]
[419302852,1775135449874,-150.73916309,0.00016297,2]
[419302853,1775135449884,-271.33049356,0.00016297,2]
[419302854,1775135449894,-881.27,0.00016299,2]
[419302855,1775135449904,-2000.0,0.000163,2]
[419302856,1775135449914,-2809.0,0.00016341,2]
[419302857,1775135449925,-1571.0,0.0001636,2]
[419302858,1775135449935,-162.0,0.0001636,2]
[419302859,1775135449946,-166.66,0.00016378,2]
[419302860,1775135449957,-1221.25,0.00016399,2]
[419302861,1775135449969,-2000.0,0.000164,2]
[419302862,1775135449979,-1571.0,0.00016416,2]
[419302863,1775135449990,-2807.0,0.00016416,2]
[419302864,1775135450001,-2500.0,0.00016438,2]
[419302865,1775135450011,-2500.0,0.00016438,2]
[419302866,1775135450021,-2500.0,0.00016438,2]
[419302867,1775135450031,-2227.75818254,0.00016438,2]
[419302868,1775135450040,-1250.81,0.00016438,2]
[419302869,1775135450050,-1013.7,0.00016438,2]
[419302870,1775135450060,-152.78,0.00016438,2]
[419302871,1775135450070,-151.0,0.00016438,2]
[419302872,1775135450080,-151.0,0.00016438,2]
[419302873,1775135450089,-151.0,0.00016438,2]
[419302874,1775135450099,-151.0,0.00016438,2]
[419302875,1775135450109,-151.0,0.00016438,2]
[419302876,1775135450121,-151.0,0.00016438,2]
[419302877,1775135450131,-151.0,0.00016438,2]
[419302878,1775135450141,-151.0,0.00016438,2]
[419302879,1775135450151,-300.0,0.00016438,3]
[419302880,1775135450160,-300.0,0.00016438,3]
[419302881,1775135450171,-300.0,0.00016438,3]
[419302882,1775135450182,-300.0,0.00016438,3]
[419302883,1775135450191,-300.0,0.00016438,3]
[419302884,1775135450201,-500.0,0.00016438,2]
[419302885,1775135450211,-250.0,0.00016438,2]
[419302886,1775135450221,-3000.0,0.00016438,2]
[419302887,1775135450230,-162.0,0.00016442,2]
[419302888,1775135450240,-1571.0,0.00016442,2]
[419302889,1775135450250,-1571.0,0.00016442,2]
[419302890,1775135450260,-1000.0,0.0001647,2]
[419302891,1775135450269,-500.0,0.00016499,2]
[419302892,1775135450279,-500.0,0.00016499,2]
[419302893,1775135450289,-561.59815036,0.00016499,2]
[419302894,1775135450300,-251.45274817,0.00016499,2]
[419302895,1775135450310,-300.0,0.00016499,2]
[419302896,1775135450320,-300.0,0.00016499,2]
[419302897,1775135450330,-300.0,0.00016499,2]
[419302898,1775135450340,-300.0,0.00016499,2]
[419302899,1775135450350,-300.0,0.00016499,2]
[419302900,1775135450360,-304.23564359,0.00016499,2]
[419302901,1775135450370,-19301.31015042,0.000165,5]
[419302902,1775135450380,-1366.0,0.00016512,2]
[419302903,1775135450390,-168.29,0.00016521,2]
[419302904,1775135450401,-168.29,0.00016521,2]
[419302905,1775135450412,-1366.0,0.00016524,2]
[419302906,1775135450422,-200.0,0.0001654,2]
[419302907,1775135450434,-1592.87721993,0.0001654,2]
[419302908,1775135450445,-194.72792766,0.0001654,2]
[419302909,1775135450455,-829.12830338,0.0001654,2]
[419302910,1775135450465,-1366.0,0.00016548,2]
[419302911,1775135450476,-1366.0,0.00016551,2]
[419302912,1775135450485,-1366.0,0.00016553,2]
[419302913,1775135450495,-1571.0,0.00016561,2]
[419302914,1775135450506,-2809.0,0.00016561,2]
[419302915,1775135450736,-1366.0,0.00016563,2]
[419302916,1775135450757,-880.73,0.00016573,2]
[419302917,1775135450767,-300.0,0.00016588,2]
[419302918,1775135450776,-300.0,0.00016588,2]
[419302919,1775135450786,-300.0,0.00016588,2]
[419302920,1775135450796,-300.0,0.00016588,2]
[419302921,1775135450806,-300.0,0.00016593,2]
[419302922,1775135450815,-300.0,0.00016593,2]
[419302923,1775135450824,-300.0,0.00016593,2]
[419302924,1775135450832,-300.0,0.00016593,2]
[419302925,1775135450842,-300.0,0.00016593,2]
[419302926,1775135450852,-30540.81940236,0.00016594,2]
[419302927,1775135450862,-300.0,0.00016636,2]
[419302928,1775135450872,-1524.0,0.00016637,2]
[419302929,1775135450883,-1524.0,0.00016637,2]
[419302930,1775135450893,-183.57157804,0.00016637,2]
[419302931,1775135450903,-1524.0,0.00016637,2]
[419302932,1775135450915,-1524.0,0.00016637,2]
[419302933,1775135450924,-1524.0,0.00016637,2]
[419302934,1775135450934,-1524.0,0.00016637,2]
[419302935,1775135450943,-1524.0,0.00016637,2]
[419302936,1775135450953,-965.65793482,0.00016637,2]
[419302937,1775135450962,-152.0,0.00016637,2]
[419302938,1775135450972,-152.35058231,0.00016637,2]
[419302939,1775135450982,-152.0,0.00016637,2]
[419302940,1775135450992,-152.0,0.00016637,2]
[419302941,1775135451001,-152.0,0.00016637,2]
[419302942,1775135451011,-152.0,0.00016637,2]
[419302943,1775135451020,-292.0,0.00016637,2]
[419302944,1775135451029,-1366.0,0.00016646,2]
[419302945,1775135451039,-1366.0,0.00016648,2]
[419302946,1775135451048,-2795.97,0.0001667,2]
[419302947,1775135451058,-1366.0,0.00016691,2]
[419302948,1775135451068,-1366.0,0.00016692,2]
[419302949,1775135451077,-1366.0,0.00016695,2]
[419302950,1775135451087,-277.0,0.000167,7]
[419302951,1775135451096,-1366.0,0.00016741,2]
[419302952,1775135451106,-1366.0,0.00016747,2]
[419302953,1775135451116,-2469.0,0.0001679,2]
[419302954,1775135451126,-6016.0,0.0001679,2]
[419302955,1775135451136,-313.0,0.000168,2]
[419302956,1775135451146,-385.44,0.00016826,2]
[419302957,1775135451156,-500.0,0.0001683,2]
[419302958,1775135451166,-300.0,0.00016831,2]
[419302959,1775135451175,-300.0,0.00016831,2]
[419302960,1775135451185,-300.0,0.00016831,2]
[419302961,1775135451194,-300.0,0.00016831,2]
[419302962,1775135451204,-300.0,0.00016831,2]
[419302963,1775135451215,-300.0,0.00016831,2]
[419302964,1775135451226,-300.0,0.00016831,2]
[419302965,1775135451236,-30000.0,0.00016832,2]
[419302966,1775135451248,-1366.0,0.00016869,2]
[419302967,1775135451258,-873.0,0.00016881,2]
[419302968,1775135451269,-151.08,0.00016885,2]
[419302969,1775135451279,-1366.0,0.00016894,2]
[419302970,1775135451288,-380.567,0.000169,22]
[419302971,1775135451298,-300.0,0.00016921,2]
[419302972,1775135451307,-300.0,0.00016921,2]
[419302973,1775135451317,-300.0,0.00016921,2]
[419302974,1775135451326,-300.0,0.00016921,2]
[419302975,1775135451336,-300.0,0.00016921,2]
[419302976,1775135451345,-300.0,0.00016921,2]
[419302977,1775135451354,-500.0,0.00016921,2]
[419302978,1775135451364,-7738.97,0.00016922,2]
[419302979,1775135451373,-150.99,0.00016922,2]
[419302980,1775135451383,-2998.62,0.00016922,2]
[419302981,1775135451392,-299.99,0.00016922,4]
[419302982,1775135451401,-4999.99,0.00016922,2]
[419302983,1775135451411,-651.4,0.00016922,2]
[419302984,1775135451421,-9999.99,0.00016922,2]
[419302985,1775135451430,-150.99,0.00016922,2]
[419302986,1775135451441,-3701.94,0.00016922,2]
[419302987,1775135451451,-1213.28,0.00016931,2]
[419302988,1775135451460,-983.28,0.00016931,2]
[419302989,1775135451470,-152.7626964,0.00016969,2]
[419302990,1775135451479,-152.7626964,0.00016969,2]
[419302991,1775135451488,-1000.0,0.0001697,2]
[419302992,1775135451498,-500.4387024,0.0001697,2]
[419302993,1775135451507,-2800.0,0.00016981,2]
[419302994,1775135451517,-1689.49668369,0.00016986,2]
[419302995,1775135451527,-500.0,0.00016999,2]
[419302996,1775135451536,-500.0,0.00016999,2]
[419302997,1775135451545,-300.0,0.00016999,2]
[419302998,1775135451555,-300.0,0.00016999,2]
[419302999,1775135451565,-300.0,0.00016999,2]
[419303000,1775135451576,-1221.25,0.00016999,2]
[419303001,1775135451585,-300.0,0.00016999,2]
[419303002,1775135451594,-300.0,0.00016999,2]
[419303003,1775135451604,-500.0,0.00016999,2]
[419303004,1775135451614,-300.0,0.00016999,2]
[419303005,1775135451624,-500.0,0.00016999,2]
[419303006,1775135451634,-209061.81548756,0.00017,2]
[419303007,1775135451644,-5961.60884521,0.00017,2]
[419303008,1775135451653,-1562.00959032,0.00017005,2]
[419303009,1775135451663,-1366.0,0.00017012,2]
[419303010,1775135451673,-1366.0,0.0001703,2]
[419303011,1775135451682,-163.54,0.00017031,2]
[419303012,1775135451692,-2809.0,0.00017056,2]
[419303013,1775135451701,-2795.97,0.00017058,2]
[419303014,1775135451711,-1366.0,0.00017076,2]
[419303015,1775135451720,-177.0,0.00017082,3]
[419303016,1775135451730,-1571.0,0.00017082,2]
[419303017,1775135451739,-2809.0,0.00017082,2]
[419303018,1775135451749,-2809.0,0.00017087,2]
[419303019,1775135451758,-200.0,0.00017088,2]
[419303020,1775135451768,-1651.81367706,0.00017088,2]
[419303021,1775135451778,-201.93286099,0.00017088,2]
[419303022,1775135451787,-639.3477906,0.00017088,2]
[419303023,1775135451797,-1366.0,0.0001709,2]
[419303024,1775135451807,-44122.44625457,0.000171,2]
[419303025,1775135452509,-9136.69,0.000171,2]
[419303026,1775135452538,-899.72188916,0.000171,2]
[419303027,1775135453104,-2000.0,0.000154,2]
[419303028,1775135453114,-35077.53884865,0.000171,2]
[419303029,1775135453125,-1366.0,0.00017105,2]
[419303030,1775135453135,-3923.0,0.00017121,2]
[419303031,1775135453147,-163.10364202,0.00017154,2]
[419303032,1775135453158,-1152.0,0.00017181,2]
[419303033,1775135453169,-1601.22462743,0.0001726,2]
[419303034,1775135453179,-225.887539,0.00017266,2]
[419303035,1775135453189,-300.0,0.00017331,2]
[419303036,1775135453199,-709.18,0.00017332,2]
[419303037,1775135453209,-11014.86,0.00017332,2]
[419303038,1775135453219,-671.56,0.00017332,2]
[419303039,1775135453228,-3460.03,0.00017332,2]
[419303040,1775135453238,-4382.03506936,0.00017339,2]
[419303041,1775135453248,-500.0,0.00017361,2]
[419303042,1775135453258,-500.0,0.00017362,2]
[419303043,1775135453268,-500.0,0.00017362,2]
[419303044,1775135453278,-200.0,0.00017362,2]
[419303045,1775135453288,-1175.76,0.00017424,2]
[419303046,1775135453298,-952.87,0.00017424,2]
[419303047,1775135453308,-1000.0,0.0001747,2]
[419303048,1775135453318,-400.0,0.0001747,2]
[419303049,1775135453328,-5040.0,0.00017508,2]
[419303050,1775135453338,-2000.0,0.00017538,2]
[419303051,1775135453348,-5040.0,0.00017543,2]
[419303052,1775135453360,-3923.0,0.00017543,2]
[419303053,1775135453371,-1600.0,0.00017577,2]
[419303054,1775135453381,-300.0,0.00017592,2]
[419303055,1775135453391,-300.0,0.00017592,2]
[419303056,1775135453402,-183.53395381,0.00017592,2]
[419303057,1775135453412,-150.0,0.00017593,2]
[419303058,1775135453422,-150.09,0.00017593,2]
[419303059,1775135453431,-150.0,0.00017593,2]
[419303060,1775135453442,-150.0,0.00017593,2]
[419303061,1775135453451,-150.099,0.00017593,2]
[419303062,1775135453461,-150.0,0.00017593,2]
[419303063,1775135453471,-150.0,0.00017593,2]
[419303064,1775135453480,-150.0,0.00017593,2]
[419303065,1775135453490,-150.0,0.00017593,2]
[419303066,1775135453500,-150.244,0.00017593,2]
[419303067,1775135453509,-621.0,0.00017593,2]
[419303068,1775135453518,-1358.61,0.00017593,2]
[419303069,1775135453529,-3630.968,0.00017593,2]
[419303070,1775135453539,-1046.0,0.00017593,2]
[419303071,1775135453548,-150.0,0.00017593,2]
[419303072,1775135453558,-1263.0,0.00017593,2]
[419303073,1775135453568,-1217.0,0.00017593,2]
[419303074,1775135453577,-925.0,0.00017593,2]
[419303075,1775135453586,-174.44581464,0.00017618,5]
[419303076,1775135453596,-599.60298507,0.00017635,2]
[419303077,1775135453605,-200.0,0.00017636,2]
[419303078,1775135453615,-209.40437684,0.00017636,2]
[419303079,1775135453625,-300.0,0.00017682,2]
[419303080,1775135453634,-300.0,0.00017682,2]
[419303081,1775135453643,-1221.25,0.00017727,2]
[419303082,1775135453653,-150.0,0.00017735,3]
[419303083,1775135453662,-169.5030048,0.00017765,10]
[419303084,1775135453671,-1000.0,0.00017808,2]
[419303085,1775135453681,-151.08,0.00017878,2]
[419303086,1775135453691,-198.42239388,0.00017958,2]
[419303087,1775135453700,-200.0,0.00018,2]
[419303088,1775135453710,-1138.23,0.00018082,2]
[419303089,1775135453720,-200.0,0.00018184,2]
[419303090,1775135453729,-217.15233878,0.00018184,2]
[419303091,1775135453739,-663.81763025,0.00018188,2]
[419303092,1775135453748,-480.3039,0.000182,27]
[419303093,1775135453758,-4802.71,0.00018244,2]
[419303094,1775135453768,-724.0,0.00018635,5]
[419303095,1775135453777,-2646.0,0.00018635,5]
[419303096,1775135453786,-200.0,0.00018732,2]
[419303097,1775135453796,-225.18697532,0.00018732,2]
[419303098,1775135453806,-177.0,0.00018823,3]
[419303099,1775135453818,-627.0,0.00018865,2]
[419303100,1775135453828,-151.08,0.00018871,2]
[419303101,1775135453837,-1100.71,0.00018904,2]
[419303102,1775135453847,-150.0,0.00018961,2]
[419303103,1775135453856,-5256.38052517,0.00018961,2]
[419303104,1775135453867,-214.33391887,0.00019,10]
[419303105,1775135453879,-211.0,0.00019,2]
[419303106,1775135453888,-306.0,0.00019,2]
[419303107,1775135453898,-1000.0,0.00019,2]
[419303108,1775135453909,-500.0,0.00019005,2]
[419303109,1775135453918,-500.0,0.00019005,2]
[419303110,1775135453928,-187.0,0.00019136,2]
[419303111,1775135453938,-150.0,0.00019177,2]
[419303112,1775135453947,-150.0,0.00019177,2]
[419303113,1775135453957,-150.0,0.00019177,2]
[419303114,1775135453966,-150.0,0.00019177,2]
[419303115,1775135453977,-241.82458942,0.00019177,2]
[419303116,1775135453988,-500.0,0.00019177,2]
[419303117,1775135453998,-500.0,0.00019177,2]
[419303118,1775135454007,-300.0,0.00019177,2]
[419303119,1775135454017,-300.0,0.00019177,2]
[419303120,1775135454027,-151.0,0.00019178,2]
[419303121,1775135454038,-151.0,0.00019178,2]
[419303122,1775135454047,-151.0,0.00019178,2]
[419303123,1775135454057,-151.0,0.00019178,2]
[419303124,1775135454066,-151.0,0.00019178,2]
[419303125,1775135454076,-153.755163,0.00019178,2]
[419303126,1775135454085,-20302.97,0.00019178,2]
[419303127,1775135454095,-6078.056687,0.00019178,2]
[419303128,1775135454105,-6078.056687,0.00019178,2]
[419303129,1775135454114,-6078.056687,0.00019178,2]
[419303130,1775135454125,-6078.056687,0.00019178,2]
[419303131,1775135454136,-6078.056687,0.00019178,2]
[419303132,1775135454148,-6078.056687,0.00019178,2]
[419303133,1775135454158,-6078.056687,0.00019178,2]
[419303134,1775135454168,-6078.056687,0.00019178,2]
[419303135,1775135454178,-6078.056687,0.00019178,2]
[419303136,1775135454189,-6078.056687,0.00019178,2]
[419303137,1775135454199,-6078.056687,0.00019178,2]
[419303138,1775135454210,-6078.056687,0.00019178,2]
[419303139,1775135454221,-6078.056687,0.00019178,2]
[419303140,1775135454230,-6078.056687,0.00019178,2]
[419303141,1775135454239,-6078.056687,0.00019178,2]
[419303142,1775135454249,-6078.056687,0.00019178,2]
[419303143,1775135454259,-6078.056687,0.00019178,2]
[419303144,1775135454269,-6078.056687,0.00019178,2]
[419303145,1775135454278,-6078.056687,0.00019178,2]
[419303146,1775135454287,-6078.056679,0.00019178,2]
[419303147,1775135454298,-238.151397,0.00019178,2]
[419303148,1775135454308,-238.151397,0.00019178,2]
[419303149,1775135454318,-238.151397,0.00019178,2]
[419303150,1775135454328,-238.151397,0.00019178,2]
[419303151,1775135454338,-238.151397,0.00019178,2]
[419303152,1775135454348,-238.151397,0.00019178,2]
[419303153,1775135454358,-238.151397,0.00019178,2]
[419303154,1775135454369,-238.151397,0.00019178,2]
[419303155,1775135454379,-238.151397,0.00019178,2]
[419303156,1775135454388,-238.151397,0.00019178,2]
[419303157,1775135454400,-238.151397,0.00019178,2]
[419303158,1775135454409,-238.151397,0.00019178,2]
[419303159,1775135454418,-238.151397,0.00019178,2]
[419303160,1775135454428,-238.151397,0.00019178,2]
[419303161,1775135454441,-238.151397,0.00019178,2]
[419303162,1775135454450,-238.151397,0.00019178,2]
[419303163,1775135454460,-238.151397,0.00019178,2]
[419303164,1775135454469,-238.151397,0.00019178,2]
[419303165,1775135454479,-238.151397,0.00019178,2]
[419303166,1775135454488,-238.15139,0.00019178,2]
[419303167,1775135454497,-1500.0,0.00019178,2]
[419303168,1775135454507,-200.0,0.0001928,2]
[419303169,1775135454516,-233.51889341,0.0001928,2]
[419303170,1775135454527,-2000.0,0.00019291,2]
[419303171,1775135454536,-1600.0,0.00019335,2]
[419303172,1775135454545,-606.1793,0.000195,32]
[419303173,1775135454555,-169.5030048,0.00019524,13]
[419303174,1775135454565,-1221.25,0.00019595,2]
[419303175,1775135454574,-2469.0,0.0001979,2]
[419303176,1775135454584,-6016.0,0.0001979,2]
[419303177,1775135454594,-150.0,0.00019802,3]
[419303178,1775135454603,-200.0,0.00019828,2]
[419303179,1775135454613,-242.15909246,0.00019828,2]
[419303180,1775135454622,-300.0,0.00019839,2]
[419303181,1775135454632,-300.0,0.00019839,2]
[419303182,1775135454642,-151.08,0.00019865,2]
[419303183,1775135454651,-311.11,0.00019898,2]
[419303184,1775135454661,-20275.61263469,0.0001995,15]
[419303185,1775135454670,-1000.0,0.00019989,7]
[419303186,1775135454680,-500.0,0.00019999,2]
[419303187,1775135454691,-500.0,0.00019999,2]
[419303188,1775135454701,-38247.06988422,0.0002,14]
[419303189,1775135454710,-200.0,0.0002,2]
[419303190,1775135454720,-300.99469048,0.0002,2]
[419303191,1775135454729,-200.0,0.0002,10]
[419303192,1775135454739,-298.16729755,0.0002,20]
[419303193,1775135454748,-200.0,0.0002,2]
[419303194,1775135454757,-354.86,0.0002,30]
[419303195,1775135454766,-1063.19,0.00020054,2]
[419303196,1775135454776,-2000.0,0.000201,2]
[419303197,1775135454785,-1000.0,0.000201,2]
[419303198,1775135454794,-300.0,0.000201,10]
[419303199,1775135454804,-276.41215747,0.00020374,2]
[419303200,1775135454814,-251.11897888,0.00020376,2]
[419303201,1775135454824,-353.19390695,0.000205,2]
[419303202,1775135454834,-354.71,0.000205,2]
[419303203,1775135454844,-152.78,0.00020548,2]
[419303204,1775135454853,-2000.0,0.00020548,2]
[419303205,1775135454864,-299.0,0.00020562,13]
[419303206,1775135454874,-150.0,0.00020562,8]
[419303207,1775135454885,-201.88,0.00020562,10]
[419303208,1775135454896,-177.0,0.00020564,3]
[419303209,1775135454905,-500.0,0.00020592,2]
[419303210,1775135454915,-150.0,0.00020593,2]
[419303211,1775135454926,-150.0,0.00020593,2]
[419303212,1775135454937,-150.0,0.00020593,2]
[419303213,1775135454947,-150.0,0.00020593,2]
[419303214,1775135454957,-150.0,0.00020593,2]
[419303215,1775135454966,-150.0,0.00020593,2]
[419303216,1775135454976,-150.0,0.00020593,2]
[419303217,1775135454986,-150.0,0.00020593,2]
[419303218,1775135454995,-621.0,0.00020593,2]
[419303219,1775135455008,-1346.0,0.00020593,2]
[419303220,1775135455018,-3520.0,0.00020593,2]
[419303221,1775135455028,-1046.0,0.00020593,2]
[419303222,1775135455037,-150.0,0.00020593,2]
[419303223,1775135455047,-1263.0,0.00020593,2]
[419303224,1775135455057,-1217.0,0.00020593,2]
[419303225,1775135455068,-925.0,0.00020593,2]
[419303226,1775135455078,-168.3,0.00020652,2]
[419303227,1775135455089,-151.08,0.00020858,2]
[419303228,1775135455099,-636.0,0.000209,2]
[419303229,1775135455110,-282.0,0.000209,2]
[419303230,1775135455121,-765.0435,0.000209,37]
[419303231,1775135455130,-228.0,0.000209,2]
[419303232,1775135455139,-519.0,0.000209,2]
[419303233,1775135455149,-1563.0,0.000209,2]
[419303234,1775135455160,-1790.0,0.000209,2]
[419303235,1775135455171,-260.4103811,0.00020924,2]
[419303236,1775135455181,-500.0,0.00021,2]
[419303237,1775135455193,-346.0,0.00021,2]
[419303238,1775135455202,-2000.0,0.00021045,2]
[419303239,1775135455212,-1600.0,0.00021093,2]
[419303240,1775135455221,-169.5030048,0.00021283,16]
[419303241,1775135455231,-1025.66,0.00021369,2]
[419303242,1775135455240,-4382.03506936,0.00021373,2]
[419303243,1775135455250,-270.0455652,0.00021472,2]
[419303244,1775135455261,-2809.0,0.00021505,2]
[419303245,1775135455270,-536.98,0.00021528,2]
[419303246,1775135455280,-7867.76,0.00021528,2]
[419303247,1775135455290,-513.47,0.00021528,2]
[419303248,1775135455301,-2471.44,0.00021528,2]
[419303249,1775135455397,-3430.51,0.00021528,2]
[419303250,1775135455407,-150.0,0.0002187,3]
[419303251,1775135455417,-636.0,0.000219,2]
[419303252,1775135455427,-282.0,0.000219,2]
[419303253,1775135455438,-228.0,0.000219,2]
[419303254,1775135455447,-519.0,0.000219,2]
[419303255,1775135455457,-1563.0,0.000219,2]
[419303256,1775135455467,-1790.0,0.000219,2]
[419303257,1775135455477,-5000.0,0.00021918,2]
[419303258,1775135455488,-581.0,0.00021918,2]
[419303259,1775135455499,-500.0,0.00021918,2]
[419303260,1775135455507,-159.82,0.00021918,2]
[419303261,1775135455518,-500.0,0.00021995,2]
[419303262,1775135455527,-280.03725112,0.0002202,2]
[419303263,1775135455536,-965.5418,0.000222,42]
[419303264,1775135455545,-177.0,0.00022305,3]
[419303265,1775135455555,-354.86,0.00022431,30]
[419303266,1775135455565,-290.39862941,0.00022568,2]
[419303267,1775135455574,-5977.55,0.0002274,2]
[419303268,1775135455584,-2469.0,0.0002279,2]
[419303269,1775135455593,-6016.0,0.0002279,2]
[419303270,1775135455602,-636.0,0.000229,2]
[419303271,1775135455611,-282.0,0.000229,2]
[419303272,1775135455621,-228.0,0.000229,2]
[419303273,1775135455630,-519.0,0.000229,2]
[419303274,1775135455639,-1563.0,0.000229,2]
[419303275,1775135455648,-1790.0,0.000229,2]
[419303276,1775135455658,-202.0,0.00023,2]
[419303277,1775135455667,-988.14,0.00023013,2]
[419303278,1775135455676,-169.5030048,0.00023042,19]
[419303279,1775135455685,-663.81763025,0.00023078,2]
[419303280,1775135455695,-301.1433787,0.00023116,2]
[419303281,1775135455704,-432.09,0.00023263,2]
[419303282,1775135455713,-1218.5857,0.000235,47]
[419303283,1775135455722,-150.0,0.00023593,2]
[419303284,1775135455731,-150.0,0.00023593,2]